{"text_format":"1","workbook":"xlsx","n_sheets":3,"sheets":["Hoja1","Hoja2","Hoja3"],"not_rendered":{"charts":0,"images":0,"macros":1,"external_links":0,"defined_names":0,"comments":0,"pivot_tables":0},"unopened":[],"bounds":{"document_bytes":16777216,"sheet_cells":100000,"rows_first":2000,"rows_last":500,"rows_between":2000,"halvings":0,"cell_chars":16384,"cell_head_chars":4096},"cells_cut":0,"cells_raw":0,"read":"whole","date_system":"1900"}

{"sheet":"Hoja1","index":0,"n_rows":27,"n_cols":7,"rows_kept":27,"cut":false,"hidden":false,"merged":[]}
[]
["Código","Alumno","Créditos Acumulados","Ponderado ","Nivel de Inglés","Nivel estudiantil ","debería de arrojar tercio superior, décimo superior, quinto superior"]
[{"$f":"RANDBETWEEN(1000,9000)","v":7466},"ABAD VERGARA, ROCÍO",{"$f":"RANDBETWEEN(0,200)","v":144},{"$f":"RANDBETWEEN(0,20)","v":7},"si","quinto superior"]
[{"$f":"RANDBETWEEN(1000,9000)","v":3088},"Alarcón Armas, Melissa Lorena",{"$f":"RANDBETWEEN(0,200)","v":110},{"$f":"RANDBETWEEN(0,20)","v":10},"no","tercio superior"]
[7552,"ALEGRE BELTRÁN, ALEX RAFAEL",118,14,"si","quinto superior"]
[7713,"ARBULÚ ZUMAETA, PIERO",27,20,"si","quinto superior"]
[3001,"CACERES  RODRIGUEZ, ASHLY",107,2,"no"]
[1402,"CUSINGA VARGAS, YETZY YARIZELL",161,10,"si","quinto superior"]
[3585,"ESPICHÁN AVILA, VÍCTOR CÉSAR",198,9,"si","quinto superior"]
[6424,"Fustamante Flores, Karla Fiorella",191,10,"si","quinto superior"]
[7806,"GÓZAR PASTOR, CHRISTIAN ENRIQUE",29,3,"si","quinto superior"]
[5471,"GUERRERO GALLEGOS, ERNESTO MIGUEL",79,15,"no","tercio superior"]
[6483,"GUERREROS GUEVARA, DENISSE",53,1,"no"]
[8528,"HEREDIA LAVALLE, CARLOS MARTIN",185,13,"no","tercio superior"]
[4208,"INCIO MENDOZA, EDUARDO GUSTAVO",182,16,"si","quinto superior"]
[1586,"INFANTE TIPTE, BRENDA KEMMERLY",10,8,"no"]
[1697,"LEZAMA LOZA, FERNANDO",68,8,"no","tercio superior"]
[2351,"ORÉ SÁNCHEZ, KATERINE JULIANA",87,13,"si","quinto superior"]
[8662,"POLANCO GARCÍA, FIORELLA DEL CARMEN",102,8,"no","tercio superior"]
[8448,"ROBALINO JÁCOME, JONHATAN JOSÉ",115,11,"no","tercio superior"]
[]
[]
[]
[null,null,{"$f":"C2","v":"Créditos Acumulados"},{"$f":"D2","v":"Ponderado "},{"$f":"E2","v":"Nivel de Inglés"}]
[null,"tercio superior ","0-100","11-14","no"]
[null,"decimo superior ","100-150","14-17","si"]
[null,"quinto superior","150-200","17-20","si"]

{"sheet":"Hoja2","index":1,"n_rows":0,"n_cols":0,"rows_kept":0,"cut":false,"hidden":false,"merged":[]}

{"sheet":"Hoja3","index":2,"n_rows":0,"n_cols":0,"rows_kept":0,"cut":false,"hidden":false,"merged":[]}